bitfinex/quotes_SOLUSD_20250907
["timestamp","ask_amount","ask_price","bid_price","bid_amount"]
[1757209401336,0.01284901,202.41,202.4,7.11776814]
[1757209401522,0.03,202.44,202.43,26.0]
[1757209401724,0.03,202.44,202.43,70.25776814]
[1757209402132,0.03,202.44,202.43,75.19774739]
[1757209402732,0.03,202.44,202.43,77.72861667]
[1757209403617,0.03,202.44,202.43,78.44861667]
[1757209404525,0.03,202.44,202.43,77.72861667]
[1757209405948,0.03,202.44,202.43,78.44861667]
[1757209406445,0.03,202.44,202.43,77.72861667]
[1757209406624,0.03,202.44,202.43,82.67561667]
[1757209406942,0.03,202.44,202.43,78.44861667]
[1757209407322,0.03,202.44,202.43,77.72861667]
[1757209407757,0.03,202.44,202.43,78.44861667]
[1757209408362,0.03,202.44,202.43,77.72861667]
[1757209408653,0.03,202.44,202.43,34.92863742]
[1757209408868,0.03,202.44,202.43,72.78863742]
[1757209411155,3.07086928,202.44,202.43,8.92863742]
[1757209411461,3.07086928,202.44,202.43,6.39776814]
[1757209411665,3.07086928,202.44,202.43,44.23776814]
[1757209416772,3.07086928,202.44,202.43,6.39776814]
[1757209416957,3.07086928,202.44,202.43,44.23776814]
[1757209417352,3.07086928,202.44,202.43,6.39776814]
[1757209417670,3.07086928,202.44,202.43,44.23776814]
[1757209418785,0.03,202.44,202.43,44.95776814]
[1757209418941,0.03,202.44,202.43,64.72244533]
[1757209421158,0.03,202.44,202.43,21.22246608]
[1757209421462,3.98332205,202.44,202.43,59.06246608]
[1757209423065,0.03,202.44,202.43,59.78246608]
[1757209428062,0.03,202.44,202.43,59.76909572]
[1757209431675,0.03,202.44,202.43,64.70907497]
[1757209431974,0.03,202.44,202.43,63.98907497]
[1757209432774,0.03,202.44,202.43,64.67907497]
[1757209434475,0.03,202.44,202.43,26.14907497]
[1757209434674,0.03,202.44,202.43,59.04909572]
[1757209435564,3.98332205,202.44,202.43,21.20909572]
[1757209435766,3.98332205,202.44,202.43,59.04909572]
[1757209435971,0.03,202.44,202.43,59.04909572]
[1757209436279,0.03,202.44,202.43,59.73909572]
[1757209436649,0.03,202.44,202.43,59.04909572]
[1757209437480,0.03,202.44,202.43,59.73909572]
[1757209438876,0.03,202.44,202.43,59.74270457]
[1757209441579,0.03,202.44,202.43,59.05270457]
[1757209441776,0.03,202.44,202.43,59.74270457]
[1757209442176,0.03,202.44,202.43,21.90270457]
[1757209442377,3.98332205,202.44,202.43,59.74270457]
[1757209445368,0.03,202.44,202.43,59.74270457]
[1757209445567,3.98332205,202.44,202.43,59.74270457]
[1757209446668,0.03,202.44,202.43,64.68268382]
[1757209446879,3.98332205,202.44,202.43,64.68268382]
[1757209447788,3.98332205,202.44,202.43,64.66268382]
[1757209448871,0.03,202.44,202.43,64.66268382]
[1757209449189,0.03,202.45,202.43,64.66268382]
[1757209449368,0.03,202.45,202.44,7.07800663]
[1757209449895,0.03,202.45,202.44,11.06132868]
[1757209451090,0.03,202.45,202.44,16.00106391]
[1757209451271,0.03,202.45,202.44,53.82106391]
[1757209451884,0.03,202.45,202.44,48.19132868]
[1757209451885,3.98332205,202.45,202.44,48.19132868]
[1757209452086,3.98332205,202.45,202.44,48.88132868]
[1757209452901,3.98332205,202.45,202.44,48.19132868]
[1757209453086,3.98332205,202.45,202.44,53.13106391]
[1757209453891,3.98332205,202.45,202.44,10.37132868]
[1757209454094,3.98332205,202.45,202.44,48.19132868]
[1757209454286,4.49332205,202.45,202.44,10.37132868]
[1757209454488,4.49332205,202.45,202.44,48.19132868]
[1757209456189,3.98332205,202.45,202.44,10.37132868]
[1757209456499,4.49332205,202.45,202.44,6.38800663]
[1757209459393,4.49332205,202.45,202.44,6.39402973]
[1757209461994,0.54,202.45,202.44,6.39402973]
[1757209462186,4.49332205,202.45,202.44,6.39402973]
[1757209463003,4.49332205,202.45,202.44,6.39257065]
[1757209463203,0.03,202.45,202.44,7.09257065]
[1757209463503,3.98332205,202.45,202.44,7.09257065]
[1757209465307,3.98332205,202.45,202.44,6.39257065]
[1757209466208,0.03,202.45,202.44,6.39257065]
[1757209466388,3.98332205,202.45,202.44,6.39257065]
[1757209467603,0.03,202.45,202.44,6.39257065]
[1757209467810,3.98332205,202.45,202.44,7.09257065]
[1757209468407,0.03,202.45,202.44,7.09257065]
[1757209468785,3.98332205,202.45,202.44,21.91800121]
[1757209469105,3.98332205,202.45,202.44,59.73800121]
[1757209469805,0.03,202.45,202.44,59.85800121]
[1757209470107,3.98332205,202.45,202.44,59.85647537]
[1757209475090,3.98332205,202.45,202.44,59.15647537]
[1757209475290,3.98332205,202.45,202.44,59.85647537]
[1757209476506,0.03,202.45,202.44,59.85647537]
[1757209476894,3.98332205,202.45,202.44,59.85647537]
[1757209479123,0.03,202.45,202.44,59.85647537]
[1757209479417,0.03,202.45,202.44,64.7962106]
[1757209483103,0.03,202.47,202.46,88.45996087]
[1757209483300,0.03,202.47,202.46,74.86436686]
[1757209483500,0.03,202.47,202.46,37.04436686]
[1757209483826,0.03,202.47,202.46,50.63996087]
[1757209484000,0.03,202.47,202.46,74.86436686]
[1757209484320,0.03,202.47,202.46,79.80361411]
[1757209484710,0.03,202.47,202.46,93.39920812]
[1757209485720,0.03,202.47,202.46,55.57920812]
[1757209485911,0.03,202.47,202.46,79.82361411]
[1757209486718,0.03,202.47,202.46,79.84361411]
[1757209488119,0.03,202.47,202.46,41.98361411]
[1757209488323,0.03,202.47,202.46,79.82361411]
[1757209490105,0.03,202.47,202.46,41.98361411]
[1757209490310,3.06846169,202.47,202.46,10.34436686]
[1757209490511,3.06846169,202.47,202.46,44.23104481]
[1757209490712,0.03,202.47,202.46,44.23104481]
[1757209490921,0.03,202.47,202.46,6.39104481]
[1757209491119,0.03,202.47,202.46,44.25104481]
[1757209491707,0.03,202.47,202.46,46.7795065]
[1757209493022,0.03,202.47,202.46,8.9195065]
[1757209493227,0.03,202.47,202.46,46.7795065]
[1757209493533,0.03,202.47,202.46,44.25104481]
[1757209493837,0.03,202.47,202.46,47.3195065]
[1757209494536,0.03,202.47,202.46,9.4595065]
[1757209494713,0.03,202.47,202.46,44.23104481]
[1757209494913,0.03,202.47,202.46,46.7895065]
[1757209495333,0.03,202.47,202.46,44.23104481]
[1757209496634,0.03,202.47,202.46,47.2995065]
[1757209497326,0.03,202.47,202.46,44.23104481]
[1757209500831,3.06846169,202.47,202.46,6.39104481]
[1757209501017,3.06846169,202.47,202.46,44.21104481]
[1757209501223,0.54,202.47,202.46,44.21104481]
[1757209501417,0.03,202.47,202.46,44.21104481]
[1757209502814,0.54,202.47,202.46,44.21104481]
[1757209504139,0.03,202.47,202.46,44.21104481]
[1757209504440,0.03,202.47,202.46,44.91104481]
[1757209504820,0.03,202.47,202.46,44.21104481]
[1757209506562,0.03,202.47,202.46,49.85029206]
[1757209506763,0.03,202.49,202.47,13.59559401]
[1757209507060,0.03,202.49,202.48,57.86663882]
[1757209507267,0.03,202.49,202.48,58.56663882]
[1757209507459,0.03,202.49,202.48,60.54248411]
[1757209507757,0.03,202.52,202.51,39.59559401]
[1757209507960,0.03,202.52,202.51,83.88663882]
[1757209508148,0.03,202.52,202.51,84.58663882]
[1757209508348,0.03,202.52,202.51,91.50031668]
[1757209509443,0.063,202.56,202.55,39.59559401]
[1757209509642,0.063,202.56,202.55,83.90663882]
[1757209509861,0.063,202.56,202.55,84.60663882]
[1757209510037,1e-08,202.56,202.55,87.64510051]
[1757209510364,1e-08,202.56,202.55,92.58215308]
[1757209510547,1e-08,202.56,202.55,54.66215308]
[1757209510752,1e-08,202.56,202.55,92.62215308]
[1757209511134,1e-08,202.56,202.55,41.06655907]
[1757209511339,1e-08,202.56,202.55,79.02655907]
[1757209511966,1e-08,202.56,202.55,79.04655907]
[1757209513441,1e-08,202.56,202.55,92.64215308]
[1757209517167,1e-08,202.56,202.55,93.13585833]
[1757209518166,1e-08,202.56,202.55,97.01209713]
[1757209522155,1e-08,202.56,202.55,96.49839188]
[1757209523360,1e-08,202.56,202.55,58.53839188]
[1757209523663,1e-08,202.56,202.55,57.83839188]
[1757209523851,1e-08,202.56,202.55,95.77839188]
[1757209524368,1e-08,202.56,202.55,95.89839188]
[1757209524570,0.03000001,202.56,202.55,95.89839188]
[1757209524868,0.03000001,202.56,202.55,96.59839188]
[1757209525569,0.03000001,202.56,202.55,92.72215308]
[1757209526357,0.03000001,202.56,202.55,54.78215308]
[1757209526556,0.03000001,202.56,202.55,96.67080427]
[1757209526871,0.03000001,202.56,202.55,96.65163318]
[1757209527370,0.03000001,202.56,202.55,58.69163318]
[1757209527660,0.03000001,202.56,202.55,96.65163318]
[1757209528071,0.2,202.58,202.55,96.65163318]
[1757209528274,0.2,202.58,202.57,20.95579111]
[1757209528476,0.2,202.58,202.57,62.50913969]
[1757209528645,0.03,202.59,202.57,67.87819375]
[1757209528851,0.03,202.59,202.58,33.00763036]
[1757209529372,0.03,202.59,202.58,49.13168606]
[1757209529952,0.03,202.59,202.58,86.37168606]
[1757209530182,0.03,202.59,202.58,92.00800751]
[1757209530379,0.03,202.59,202.58,53.36800751]
[1757209530589,0.54,202.59,202.58,91.38800751]
[1757209530793,0.03,202.59,202.58,91.38800751]
[1757209531475,0.03,202.59,202.58,92.08800751]
[1757209533159,0.51,202.65,202.62,39.59559401]
[1757209533458,2.52846169,202.68,202.63,41.63334858]
[1757209533659,0.51,202.67,202.64,3.61334858]
[1757209533869,0.51,202.66,202.65,41.67334858]
[1757209534875,0.51,202.66,202.65,46.60796491]
[1757209536057,0.51,202.66,202.65,51.46930069]
[1757209537073,0.51,202.69,202.65,51.46930069]
[1757209537380,0.51,202.68,202.66,3.61334858]
[1757209537571,0.51,202.68,202.67,41.65334858]
[1757209539080,0.51,202.7,202.67,41.65334858]
[1757209539259,10.31384676,202.8,202.67,42.97412937]
[1757209539260,0.51,202.69,202.67,42.97412937]
[1757209539460,4.93149759,202.78,202.68,4.3065028]
[1757209539667,0.51,202.77,202.7,26.0]
[1757209539872,0.2,202.8,202.68,14.80421426]
[1757209539873,0.71,202.8,202.72,13.59559401]
[1757209540062,0.71,202.8,202.74,13.59559401]
[1757209540263,2.52846169,202.78,202.75,3.6065028]
[1757209540554,0.51,202.79,202.73,26.0]
[1757209540555,2.52846169,202.76,202.73,14.80056242]
[1757209540780,0.51,202.79,202.74,38.14]
[1757209540985,0.51,202.78,202.74,38.14]
[1757209541185,0.51,202.77,202.7,0.7]
[1757209541372,0.51,202.76,202.72,26.0]
[1757209541568,0.51,202.75,202.73,38.28]
[1757209542178,0.51,202.75,202.72,26.0]
[1757209542683,0.51,202.75,202.73,38.28]
[1757209542883,0.51,202.79,202.73,38.98]
[1757209543074,2.52846169,202.75,202.71,0.7]
[1757209543384,0.51,202.74,202.72,38.28]
[1757209543581,2.52846169,202.75,202.73,38.28]
[1757209543765,3.03846169,202.75,202.73,38.28]
[1757209543965,3.03846169,202.74,202.69,40.80421427]
[1757209544179,27.57244437,202.8,202.7,3.60160018]
[1757209544180,2.52846169,202.71,202.7,3.60160018]
[1757209544380,2.52846169,202.71,202.7,41.8828298]
[1757209544381,3.03846169,202.71,202.7,41.8828298]
[1757209545274,2.52846169,202.72,202.7,41.8828298]
[1757209545469,3.9424118,202.72,202.71,3.6028298]
[1757209545671,4.4524118,202.72,202.71,3.6028298]
[1757209545869,4.4524118,202.72,202.71,38.3]
[1757209546683,0.51,202.72,202.64,0.7]
[1757209546885,3.9424118,202.67,202.65,41.92592142]
[1757209547077,3.9424118,202.67,202.66,3.60592142]
[1757209547677,3.9424118,202.69,202.66,7.01225953]
[1757209547866,3.9424118,202.69,202.67,41.92592142]
[1757209548192,3.9424118,202.69,202.68,3.60592142]
[1757209548371,3.9424118,202.69,202.68,3.60772418]
[1757209548878,3.9424118,202.7,202.68,8.54159058]
[1757209549071,3.9424118,202.72,202.69,42.58772418]
[1757209549270,0.51,202.74,202.7,6.31488751]
[1757209549271,3.9424118,202.74,202.7,6.31488751]
[1757209549489,3.9424118,202.74,202.71,41.92772418]
[1757209549788,3.9424118,202.73,202.72,3.60772418]
[1757209549991,3.9424118,202.73,202.72,41.92772418]
[1757209550366,3.9424118,202.74,202.72,41.92772418]
[1757209550589,3.9424118,202.74,202.73,3.60772418]
[1757209553391,3.9724118,202.75,202.73,3.60772418]
[1757209553686,3.9724118,202.75,202.74,41.90772418]
[1757209554286,3.9724118,202.75,202.74,42.56772418]
[1757209554668,3.9724118,202.75,202.74,41.90772418]
[1757209554989,4.4824118,202.75,202.74,41.88772418]
[1757209555676,4.4824118,202.75,202.74,41.89401764]
[1757209555879,0.54,202.75,202.74,41.89401764]
[1757209556081,4.4824118,202.75,202.74,41.89401764]
[1757209558111,0.03,202.75,202.74,41.89401764]
[1757209558573,3.9724118,202.75,202.74,41.89401764]
[1757209559693,3.9724118,202.75,202.74,41.85401764]
[1757209560387,0.03,202.75,202.74,41.85401764]
[1757209560792,3.9724118,202.75,202.74,3.61401764]
[1757209561099,3.9724118,202.75,202.74,41.85401764]
[1757209561678,4.4824118,202.75,202.74,41.85401764]
[1757209561997,3.9724118,202.75,202.74,41.85401764]
[1757209563178,0.03,202.75,202.74,41.85401764]
[1757209563373,0.03,202.75,202.74,42.51401764]
[1757209564274,0.03,202.75,202.74,41.85401764]
[1757209564576,0.03,202.75,202.74,42.51401764]
[1757209565398,3.9724118,202.75,202.74,42.51401764]
[1757209565800,3.9724118,202.75,202.74,41.85401764]
[1757209567989,0.03,202.75,202.74,41.85401764]
[1757209568506,0.03,202.75,202.74,47.4464434]
[1757209569786,0.03,202.75,202.74,6.98670767]
[1757209570090,0.03,202.75,202.74,71.1866679]
[1757209570293,0.03,202.75,202.74,71.2466679]
[1757209570487,0.03,202.75,202.74,68.53401764]
[1757209571212,0.03,202.75,202.74,73.4664434]
[1757209573317,0.03,202.75,202.74,3.61401764]
[1757209573489,4.4824118,202.75,202.74,41.87401764]
[1757209573887,3.9724118,202.75,202.74,41.87401764]
[1757209574699,0.03,202.75,202.74,41.87401764]
[1757209574912,3.9724118,202.75,202.74,41.87401764]
[1757209575412,3.9724118,202.75,202.74,3.61401764]
[1757209575610,3.9724118,202.75,202.74,41.89401764]
[1757209575917,3.9724118,202.75,202.74,3.6208446]
[1757209576409,4.4824118,202.75,202.74,41.8808446]
[1757209576906,3.9724118,202.75,202.74,41.8808446]
[1757209579721,3.9724118,202.75,202.74,38.26]
[1757209580409,3.9724118,202.75,202.74,40.99091457]
[1757209582100,0.03,202.75,202.74,40.99091457]
[1757209582301,0.03,202.75,202.74,41.71091457]
[1757209582510,0.03,202.75,202.74,46.64334033]
[1757209584198,0.03,202.75,202.74,46.67334033]
[1757209588327,0.03,202.75,202.74,50.30231781]
[1757209594102,3.9724118,202.75,202.74,6.38989205]
[1757209594424,3.9724118,202.75,202.74,44.54989205]
[1757209598237,9.41459429,202.75,202.74,6.38989205]
[1757209598414,9.41459429,202.75,202.74,3.65897748]
[1757209599837,0.03,202.75,202.74,3.65897748]
[1757209600040,0.03,202.75,202.74,12.05382439]
[1757209600537,0.01,202.75,202.74,50.27382439]
[1757209604130,0.01,202.75,202.74,12.05382439]
[1757209604339,0.01,202.75,202.74,50.27382439]
[1757209605019,0.01,202.75,202.74,12.05382439]
[1757209605220,0.01,202.75,202.74,50.27382439]
[1757209606736,0.01,202.75,202.74,12.05382439]
[1757209606932,0.01,202.75,202.74,50.27382439]
[1757209607635,0.01,202.75,202.74,12.05382439]
[1757209607843,0.01,202.75,202.74,50.25382439]
[1757209609245,0.01,202.75,202.74,50.25591173]
[1757209610856,0.01,202.75,202.74,50.23591173]
[1757209612754,0.01,202.75,202.74,50.2356592]
[1757209614152,0.01,202.75,202.74,50.2156592]
[1757209615947,3.04211307,202.75,202.74,6.40323344]
[1757209616460,3.04211307,202.75,202.74,44.56323344]
[1757209618849,0.52,202.75,202.74,44.56323344]
[1757209619037,3.04211307,202.75,202.74,44.56323344]
[1757209620141,3.04211307,202.75,202.74,44.54323344]
[1757209621660,3.04211307,202.75,202.74,6.40323344]
[1757209621870,3.04211307,202.75,202.74,44.54323344]
[1757209622159,2.53211307,202.75,202.74,44.54323344]
[1757209622459,2.53211307,202.75,202.74,44.54451858]
[1757209625677,2.53211307,202.75,202.74,12.03694434]
[1757209625678,0.01,202.75,202.74,12.03694434]
[1757209625838,0.01,202.75,202.74,50.17694434]
[1757209629461,0.01,202.75,202.74,46.54484691]
[1757209629665,0.01,202.75,202.74,50.17558819]
[1757209630370,0.03,202.78,202.74,76.10224661]
[1757209630658,0.03,202.78,202.75,18.24004033]
[1757209630843,0.03,202.78,202.76,44.49316243]
[1757209631039,0.03,202.78,202.77,6.37316243]
[1757209631243,0.03,202.78,202.77,7.07316243]
[1757209633160,0.03,202.78,202.77,12.00485844]
[1757209633371,0.03,202.78,202.77,13.97807206]
[1757209634275,0.03,202.78,202.77,27.57366607]
[1757209635156,0.06,202.81,202.77,26.30731208]
[1757209635366,0.06,202.81,202.8,39.59559401]
[1757209635668,0.51,202.9,202.81,13.59559401]
[1757209635870,2.52211307,202.89,202.83,13.59559401]
[1757209636053,2.52211307,202.87,202.84,44.69316243]
[1757209636254,38.31769806,202.96,202.85,7.07316243]
[1757209636455,38.31769806,202.96,202.86,44.71316243]
[1757209636456,2.52211307,202.89,202.86,44.71316243]
[1757209636656,2.52211307,202.88,202.87,3.63074128]
[1757209636875,2.52211307,202.88,202.87,3.62191104]
[1757209637176,3.03211307,202.88,202.87,41.96191104]
[1757209638285,7.96113515,202.88,202.87,3.62191104]
[1757209638448,7.96113515,202.88,202.87,38.36]
[1757209641478,13.59559401,202.87,202.76,0.7]
[1757209641770,13.59559401,202.87,202.77,44.69898599]
[1757209641771,2.52211307,202.78,202.77,44.69898599]
[1757209641975,2.52211307,202.79,202.77,45.39898599]
[1757209642178,2.52211307,202.79,202.78,6.35898599]
[1757209642875,3.03211307,202.79,202.78,44.71898599]
[1757209643183,3.03211307,202.79,202.78,41.98125782]
[1757209644053,5.44048022,202.82,202.78,41.98125782]
[1757209644365,13.59559401,202.87,202.79,4.32422611]
[1757209644366,2.52211307,202.81,202.79,4.32422611]
[1757209644568,0.51,202.83,202.8,41.98422611]
[1757209644875,0.51,202.83,202.81,3.62422611]
[1757209645075,0.51,202.82,202.8,38.36]
[1757209645276,0.51,202.82,202.81,3.62411303]
[1757209645679,3.03211307,202.82,202.81,3.62411303]
[1757209646790,0.51,202.82,202.81,3.62411303]
[1757209646979,2.52211307,202.82,202.81,3.62411303]
[1757209647961,3.03211307,202.82,202.81,3.62411303]
[1757209648377,3.03211307,202.82,202.81,3.62450971]
[1757209648973,4.93025457,202.83,202.81,3.62450971]
[1757209649180,0.51,202.83,202.82,3.62450971]
[1757209650574,3.03211307,202.83,202.82,3.62450971]
[1757209651072,0.51,202.83,202.82,3.62450971]
[1757209651273,3.03211307,202.83,202.82,3.62450971]
[1757209654489,7.96235021,202.83,202.82,3.62450971]
[1757209654690,7.96235021,202.83,202.8,38.28]
[1757209654898,4.93023714,202.83,202.81,3.65562966]
[1757209655099,0.51,202.82,202.81,0.03]
[1757209655264,0.51,202.82,202.81,3.65562966]
[1757209655991,3.03211307,202.82,202.81,3.65562966]
[1757209657390,4.99023714,202.83,202.81,3.65562966]
[1757209657391,0.06,202.83,202.81,3.65562966]
[1757209657594,0.06,202.83,202.82,3.62530485]
[1757209657772,2.58211307,202.83,202.82,3.62530485]
[1757209659194,5.50023714,202.83,202.82,3.62530485]
[1757209659397,8.02235021,202.83,202.81,0.03]
[1757209659699,2.52211307,202.82,202.81,0.03]
[1757209659882,2.52211307,202.82,202.81,3.65580206]
[1757209660393,0.06,202.83,202.81,4.35580206]
[1757209660598,0.06,202.83,202.82,3.62580206]
[1757209660768,0.06,202.83,202.82,4.32580206]
[1757209661997,2.58211307,202.83,202.82,4.32580206]
[1757209663870,2.58211307,202.83,202.82,3.62580206]
[1757209664884,0.06,202.83,202.82,3.62580206]
[1757209665099,2.58211307,202.83,202.82,3.62580206]
[1757209665698,135.79989081,202.83,202.82,3.62580206]
[1757209666599,136.30989081,202.83,202.82,3.62580206]
[1757209666902,135.79989081,202.83,202.82,3.62580206]
[1757209667394,131.86,202.83,202.82,4.32580206]
[1757209667574,135.79989081,202.83,202.82,4.32580206]
[1757209670295,135.79989081,202.83,202.82,7.07032423]
[1757209672914,131.86,202.83,202.82,7.07032423]
[1757209673119,135.79989081,202.83,202.82,7.07032423]
[1757209673506,135.79989081,202.83,202.82,6.37032423]
[1757209675118,136.30989081,202.83,202.82,3.62580206]
[1757209678223,135.79989081,202.83,202.82,3.62580206]
[1757209682607,131.86,202.83,202.82,3.62580206]
[1757209682808,135.79989081,202.83,202.82,3.62580206]
[1757209684726,135.79989081,202.83,202.82,6.38075014]
[1757209687621,135.79989081,202.83,202.82,3.62580206]
[1757209688008,135.79989081,202.83,202.82,6.38239042]
[1757209690716,135.79989081,202.83,202.82,12.02287064]
[1757209690717,0.06,202.83,202.82,12.02287064]
[1757209690911,0.06,202.86,202.82,12.02287064]
[1757209691111,0.06,202.86,202.83,7.09239042]
[1757209691430,0.06,202.86,202.84,44.72239042]
[1757209691730,0.06,202.86,202.85,6.38239042]
[1757209692120,0.06,202.86,202.85,7.09239042]
[1757209692512,0.06,202.86,202.85,12.02214146]
[1757209707736,0.06,202.86,202.85,10.36877462]
[1757209707921,0.06,202.86,202.85,13.99086113]
[1757209710229,0.06,202.86,202.85,52.23086113]
[1757209711140,0.06,202.86,202.85,52.21086113]
[1757209714331,0.06,202.86,202.85,13.99086113]
[1757209714538,0.06,202.86,202.85,52.19086113]
[1757209718928,0.06,202.86,202.85,13.99086113]
[1757209719125,0.06,202.86,202.85,51.44086113]
[1757209722053,0.06,202.86,202.85,52.13086113]
[1757209724930,0.06,202.86,202.85,13.97086113]
[1757209725553,0.06,202.86,202.85,52.11086113]
[1757209726059,0.06,202.86,202.85,52.11247449]
[1757209730857,0.03441374,202.86,202.85,52.11247449]
[1757209732542,0.03441374,202.86,202.85,65.7080685]
[1757209733063,0.06,202.88,202.85,13.28247449]
[1757209733243,3.14911854,202.88,202.86,44.50514845]
[1757209733435,3.14911854,202.88,202.87,6.38514845]
[1757209733638,3.14911854,202.88,202.87,44.52514845]
[1757209733937,3.14911854,202.88,202.87,6.38514845]
[1757209734140,3.14911854,202.88,202.87,44.54514845]
[1757209734763,3.14911854,202.88,202.87,49.47441349]
[1757209734933,0.06,202.88,202.87,50.17441349]
[1757209735341,0.06,202.88,202.87,52.75353203]
[1757209736860,0.06,202.88,202.87,14.59353203]
[1757209737039,0.06,202.88,202.87,52.77353203]
[1757209738038,0.06,202.88,202.87,52.07353203]
[1757209739046,0.06,202.88,202.87,13.89353203]
[1757209739248,0.06,202.88,202.87,52.07353203]
[1757209739754,0.06,202.88,202.87,52.05353203]
[1757209740261,0.06,202.88,202.87,52.75353203]
[1757209740736,0.06,202.88,202.87,52.05353203]
[1757209740937,0.03442139,202.88,202.87,52.05353203]
[1757209741146,0.03442139,202.88,202.87,52.75353203]
[1757209745461,0.03442139,202.88,202.87,13.89353203]
[1757209745761,0.60442139,202.88,202.87,47.08426699]
[1757209746356,0.60442139,202.88,202.87,47.11817017]
[1757209747549,0.03442139,202.88,202.87,52.74743521]
[1757209752547,0.60442139,202.88,202.87,49.46831667]
[1757209752864,0.03442139,202.88,202.87,49.46831667]
[1757209753463,0.03442139,202.88,202.87,49.46819039]
[1757209756652,0.03442139,202.88,202.87,51.44082015]
[1757209758671,0.03442139,202.88,202.87,49.46819039]
[1757209758866,0.03442139,202.88,202.87,51.44082015]
[1757209759862,0.03442139,202.88,202.87,49.46819039]
[1757209760667,0.03442139,202.88,202.87,11.34819039]
[1757209760868,0.03442139,202.88,202.87,49.44819039]
[1757209761372,0.03442139,202.88,202.87,51.96730893]
[1757209761668,0.60442139,202.88,202.87,8.93804389]
[1757209761851,0.03442139,202.88,202.87,51.96730893]
[1757209762051,0.03442139,202.88,202.87,49.44819039]
[1757209762453,0.03442139,202.88,202.87,50.11819039]
[1757209762656,10.07647416,203.0,202.87,50.11819039]
[1757209762657,20.0,203.05,202.87,76.11819039]
[1757209762870,11.17993886,203.18,202.87,76.11819039]
[1757209762871,1.97233796,203.02,202.96,26.0]
[1757209763048,2.51911854,202.99,202.97,6.38892535]
[1757209763252,0.64,203.01,202.98,45.50892535]
[1757209763478,2.51911854,203.0,202.99,6.38892535]
[1757209763663,2.01911854,203.0,202.99,45.52892535]
[1757209764079,0.64,203.01,202.99,45.52892535]
[1757209764375,2.51911854,203.0,202.99,39.14]
[1757209764555,2.51911854,203.0,202.99,6.40268078]
[1757209765273,2.51911854,203.03,202.99,46.19268078]
[1757209765464,0.64,203.04,203.0,6.40268078]
[1757209765659,2.51911854,203.02,203.01,45.52268078]
[1757209765872,0.64,203.02,203.01,45.52268078]
[1757209766077,0.64,203.02,203.01,42.74380355]
[1757209766875,0.64,203.02,203.01,43.24380355]
[1757209768379,3.15911854,203.02,203.01,43.24380355]
[1757209769653,3.15911854,203.02,203.01,43.20380355]
[1757209769857,3.15911854,203.02,203.01,4.12380355]
[1757209770066,8.08474163,203.02,203.01,0.5]
[1757209770373,3.15911854,203.02,202.99,3.6153373]
[1757209770571,2.51911854,203.0,202.98,39.06]
[1757209770768,2.51911854,202.99,202.98,39.06]
[1757209770952,2.51911854,202.99,202.98,42.6750381]
[1757209772360,0.64,203.0,202.98,42.6750381]
[1757209772681,2.51911854,202.99,202.98,39.06]
[1757209772872,2.51911854,202.99,202.98,42.6743995]
[1757209773563,0.64,203.0,202.98,42.6743995]
[1757209773771,2.51911854,202.99,202.98,39.06]
[1757209773985,2.51911854,202.99,202.98,3.614375]
[1757209774173,2.51911854,202.99,202.98,42.634375]
[1757209778287,0.64,203.0,202.98,42.634375]
[1757209778582,2.51911854,202.99,202.98,39.02]
[1757209778782,2.51911854,202.99,202.98,42.63358552]
[1757209781579,132.44,203.01,202.98,42.63358552]
[1757209781786,132.44,203.01,202.99,3.61358552]
[1757209782290,132.44,203.01,202.99,38.94]
[1757209782486,132.44,203.01,202.99,38.92]
[1757209783074,2.51911854,203.0,202.99,38.92]
[1757209783270,131.8,203.01,202.99,45.97950809]
[1757209783491,134.31911854,203.01,203.0,4.28262608]
[1757209783683,131.8,203.01,203.0,4.28262608]
[1757209784093,131.8,203.01,203.0,43.22262608]
[1757209784300,2.51911854,203.03,203.0,43.22262608]
[1757209784481,2.51911854,203.03,203.01,3.61262608]
[1757209784881,2.51911854,203.03,203.02,38.94]
[1757209786796,2.51911854,203.03,203.02,38.92]
[1757209787289,0.06,203.04,203.02,38.92]
[1757209787492,3.93103878,203.03,203.02,38.92]